lending/lending_fUSD_20240703
["ID","MTS","AMOUNT","RATE_DAILY","PERIOD"]
[330982842,1719983411101,-957.35281515,0.00013799,2]
[330982843,1719983411157,-957.35281515,0.00013799,2]
[330982844,1719983411221,-279.03907218,0.00013799,2]
[330982856,1719983431480,-442.695,0.00012273,2]
[330982857,1719983431495,-670.78694448,0.00012273,2]
[330982858,1719983431802,-1105.93757883,0.00012273,2]
[330982859,1719983431811,-1653.78147774,0.00013799,2]
[330982860,1719983431822,-349.53232163,0.00013802,2]
[330982861,1719983431831,-260.43057533,0.00013889,2]
[330982862,1719983431841,-529.02288661,0.00013889,2]
[330982863,1719983431851,-23196.38699804,0.00013899,2]
[330982864,1719983431861,-37906.96549385,0.00013899,2]
[330982865,1719983431872,-17749.98670615,0.00013899,2]
[330982866,1719983431882,-588.64260855,0.00013899,2]
[330982867,1719983431892,-317.656783,0.00013989,2]
[330982868,1719983431902,-188.2598793,0.00014099,2]
[330982869,1719983431912,-266.29859701,0.00014099,2]
[330982870,1719983431921,-312.30120647,0.00014099,2]
[330982871,1719983431930,-600.0,0.00014702,2]
[330982872,1719983431940,-500.0,0.00014702,2]
[330982873,1719983431949,-413.6,0.00014783,2]
[330982874,1719983431960,-227.12084219,0.00014849,2]
[330982875,1719983431970,-624.33886249,0.00015,2]
[330982876,1719983431981,-907.97368895,0.00015335,2]
[330982877,1719983431991,-445.67202854,0.00015479,2]
[330982878,1719983432001,-4947.52,0.00015535,2]
[330982879,1719983432010,-500.0,0.00016346,2]
[330982880,1719983432020,-330.15,0.00016545,2]
[330982881,1719983432030,-1759.69864808,0.00016566,2]
[330982882,1719983432040,-170.6,0.0001658,2]
[330982883,1719983432049,-250.0,0.00016618,2]
[330982884,1719983432059,-166.284,0.00016618,2]
[330982885,1719983432068,-200.0,0.00016631,2]
[330982886,1719983432078,-1000.0,0.00016645,2]
[330982887,1719983432087,-1026.53,0.00016659,2]
[330982888,1719983432096,-250.0,0.00016741,2]
[330982889,1719983432105,-413.6,0.00017047,2]
[330982890,1719983432115,-170.37,0.00017118,2]
[330982891,1719983432126,-23900.0,0.00017118,2]
[330982892,1719983432135,-170.37,0.00017266,2]
[330982893,1719983432145,-3652.64,0.00017352,2]
[330982894,1719983432155,-10000.0,0.00017377,2]
[330982895,1719983432164,-170.37,0.00017415,2]
[330982896,1719983432175,-161.19035565,0.00017487,2]
[330982897,1719983432185,-827.22923446,0.00017487,2]
[330982898,1719983432195,-166.284,0.00017491,2]
[330982899,1719983432204,-2500.0,0.00017499,2]
[330982900,1719983432215,-180.88,0.0001754,2]
[330982901,1719983432225,-170.37,0.00017564,2]
[330982902,1719983432235,-178.61,0.000177,2]
[330982903,1719983432245,-526.43862927,0.000177,2]
[330982904,1719983432255,-1843.16,0.0001771,2]
[330982905,1719983432264,-170.37,0.00017712,2]
[330982906,1719983432273,-170.37,0.00017861,2]
[330982907,1719983432283,-5000.0,0.00017889,2]
[330982908,1719983432293,-5000.0,0.00017889,2]
[330982909,1719983432302,-200.0,0.0001799,2]
[330982910,1719983432311,-170.37,0.0001801,2]
[330982911,1719983432321,-827.22923446,0.00018087,2]
[330982912,1719983432330,-166.284,0.00018455,2]
[330982913,1719983432340,-152.25538045,0.00018522,2]
[330982914,1719983432349,-151.63831178,0.00018531,2]
[330982915,1719983432359,-152.3729202,0.0001856,2]
[330982916,1719983432369,-159.33865841,0.00018569,2]
[330982917,1719983432378,-436.63396327,0.0001857,2]
[330982918,1719983432391,-365.18780551,0.00018575,2]
[330982919,1719983432401,-167.13166715,0.00018618,2]
[330982920,1719983432410,-159.33865841,0.00018629,2]
[330982921,1719983432420,-157.65566016,0.00018636,2]
[330982922,1719983432440,-157.65566016,0.00018667,2]
[330982923,1719983432449,-827.22923446,0.00018688,2]
[330982924,1719983432458,-157.65566016,0.00018695,2]
[330982925,1719983432468,-167.13166715,0.00018696,2]
[330982926,1719983432479,-1000.0,0.00018725,2]
[330982927,1719983432490,-163.9357113,0.0001876,2]
[330982928,1719983432840,-155.28565358,0.00018774,2]
[330982929,1719983432852,-152.3729202,0.00018776,2]
[330982930,1719983432863,-436.63396327,0.00018777,2]
[330982931,1719983432872,-159.33865841,0.00018789,2]
[330982932,1719983432881,-436.63396327,0.0001882,2]
[330982933,1719983432890,-365.18780551,0.00018849,2]
[330982934,1719983432899,-156.59,0.00018849,30]
[330982935,1719983432908,-167.13166715,0.00018919,2]
[330982936,1719983432920,-155.0,0.00018919,2]
[330982937,1719983432930,-370.4087103,0.00018919,2]
[330982938,1719983432940,-167.13166715,0.00018937,2]
[330982939,1719983432949,-436.63396327,0.00018942,2]
[330982940,1719983432959,-155.28565358,0.00018975,2]
[330982941,1719983432968,-152.3729202,0.00018977,2]
[330982942,1719983432977,-155.0,0.00018999,2]
[330982943,1719983432988,-300.0,0.00019,2]
[330982944,1719983432999,-152.40443533,0.00019012,2]
[330982945,1719983433009,-154.82210958,0.00019084,2]
[330982946,1719983433018,-250.0,0.00019178,2]
[330982947,1719983433030,-166.66666666,0.00019218,2]
[330982948,1719983433039,-163.9357113,0.00019242,2]
[330982949,1719983433048,-152.3729202,0.00019284,2]
[330982950,1719983433057,-151.63831178,0.00019287,2]
[330982951,1719983433067,-827.22923446,0.00019288,2]
[330982952,1719983433077,-365.18780551,0.00019299,2]
[330982953,1719983433086,-413.6,0.00019311,2]
[330982954,1719983433095,-436.63396327,0.00019331,2]
[330982955,1719983433105,-332.01755418,0.0001935,2]
[330982956,1719983433115,-292.92253003,0.00019389,2]
[330982957,1719983433124,-152.3729202,0.00019435,2]
[330982958,1719983433133,-199.11,0.00019476,2]
[330982959,1719983433142,-2500.0,0.000195,2]
[330982960,1719983433151,-153.97345059,0.00019505,2]
[330982961,1719983433161,-154.87527334,0.00019523,2]
[330982962,1719983433171,-157.65566016,0.00019537,2]
[330982963,1719983433181,-167.13166715,0.00019559,2]
[330982964,1719983433190,-154.77233766,0.00019615,2]
[330982965,1719983433200,-167.13166715,0.00019626,2]
[330982966,1719983433210,-436.63396327,0.00019694,2]
[330982967,1719983433219,-151.63831178,0.00019726,2]
[330982968,1719983433229,-153.03484747,0.00019729,2]
[330982969,1719983433239,-931.0,0.00019751,2]
[330982970,1719983433248,-151.63831178,0.00019787,2]
[330982971,1719983433258,-365.18780551,0.00019815,2]
[330982972,1719983433267,-157.65566016,0.00019819,2]
[330982973,1719983433276,-167.13166715,0.00019843,2]
[330982974,1719983433286,-153.97345059,0.00019885,2]
[330982975,1719983433295,-827.22923446,0.00019888,2]
[330982976,1719983433304,-153.03484747,0.00019891,2]
[330982977,1719983433313,-365.18780551,0.00019903,2]
[330982978,1719983433322,-436.63396327,0.00019927,2]
[330982979,1719983433331,-159.33865841,0.00019928,2]
[330982980,1719983433341,-436.63396327,0.00019957,2]
[330982981,1719983433350,-157.65566016,0.00019957,2]
[330982982,1719983433359,-255.59801172,0.00019964,2]
[330982983,1719983433368,-255.59801172,0.00019964,2]
[330982984,1719983433378,-328.16094107,0.0002,2]
[330982985,1719983433388,-155.33097722,0.0002,2]
[330982986,1719983433398,-6279.51081998,0.0002,2]
[330982987,1719983433411,-154.27660404,0.00020038,2]
[330982988,1719983433420,-167.13166715,0.0002004,2]
[330982989,1719983433430,-365.18780551,0.0002005,2]
[330982990,1719983433439,-163.9357113,0.00020084,2]
[330982991,1719983433449,-157.65566016,0.00020138,2]
[330982992,1719983433458,-155.28565358,0.00020185,2]
[330982993,1719983433467,-152.40443533,0.000202,2]
[330982994,1719983433478,-164.99438064,0.00020201,2]
[330982995,1719983433489,-163.9357113,0.00020218,2]
[330982996,1719983433499,-157.65566016,0.00020231,2]
[330982997,1719983433510,-151.63831178,0.00020235,2]
[330982998,1719983433521,-157.65566016,0.00020246,2]
[330982999,1719983433530,-29631.0,0.00020294,2]
[330983000,1719983433539,-157.65566016,0.00020294,2]
[330983001,1719983433549,-436.63396327,0.00020296,2]
[330983002,1719983433558,-365.18780551,0.0002031,2]
[330983003,1719983433570,-163.9357113,0.00020326,2]
[330983004,1719983433581,-365.18780551,0.00020361,2]
[330983005,1719983433591,-247.664,0.00020369,2]
[330983006,1719983433601,-153.03484747,0.00020372,2]
[330983007,1719983433613,-159.33865841,0.00020389,2]
[330983008,1719983433622,-167.13166715,0.00020483,2]
[330983009,1719983433632,-827.22923446,0.00020489,2]
[330983010,1719983433643,-159.33865841,0.00020493,2]
[330983011,1719983433653,-155.28565358,0.00020501,2]
[330983012,1719983433662,-157.65566016,0.00020517,2]
[330983013,1719983433672,-157.65566016,0.000206,2]
[330983014,1719983433683,-159.33865841,0.0002062,2]
[330983015,1719983433692,-159.33865841,0.000207,2]
[330983016,1719983433701,-436.63396327,0.00020711,2]
[330983017,1719983433710,-151.63831178,0.00020747,2]
[330983018,1719983433720,-167.13166715,0.00020766,2]
[330983019,1719983433730,-166.66666667,0.00020784,2]
[330983020,1719983433740,-1000.0,0.00020806,2]
[330983021,1719983433749,-167.13166715,0.00020833,2]
[330983022,1719983433758,-151.69453535,0.00020837,2]
[330983023,1719983433768,-157.65566016,0.00020839,2]
[330983024,1719983433778,-153.97345059,0.0002086,2]
[330983025,1719983433787,-152.0,0.00020879,3]
[330983026,1719983433797,-163.9357113,0.00020887,2]
[330983027,1719983433806,-167.13166715,0.00020919,2]
[330983028,1719983433816,-151.0669482,0.00020922,2]
[330983029,1719983433825,-203.233329,0.00021,2]
[330983030,1719983433835,-1250.0,0.00021,2]
[330983031,1719983433845,-164.99438064,0.0002102,2]
[330983032,1719983433860,-849.17049796,0.00021027,2]
[330983033,1719983433870,-153.97345059,0.00021029,2]
[330983034,1719983433882,-827.22923446,0.00021089,2]
[330983035,1719983433891,-365.18780551,0.00021092,2]
[330983036,1719983433901,-15915.1370603,0.00021116,3]
[330983037,1719983433912,-163.9357113,0.00021165,2]
[330983038,1719983433922,-152.68056806,0.00021165,2]
[330983039,1719983433933,-157.65566016,0.00021183,2]
[330983040,1719983433945,-436.63396327,0.00021213,2]
[330983041,1719983433956,-153.97345059,0.00021223,2]
[330983042,1719983433966,-154.27660404,0.00021353,2]
[330983043,1719983433977,-440.82587837,0.00021363,2]
[330983044,1719983433988,-849.17049794,0.0002137,2]
[330983045,1719983433997,-163.9357113,0.00021371,2]
[330983046,1719983434007,-365.18780551,0.00021381,2]
[330983047,1719983434016,-5305.04568677,0.0002139,3]
[330983048,1719983434026,-157.65566016,0.00021394,2]
[330983049,1719983434035,-1000.0,0.000214,2]
[330983050,1719983434044,-900.0,0.000214,2]
[330983051,1719983434053,-154.82210958,0.00021405,2]
[330983052,1719983434063,-365.18780551,0.00021411,2]
[330983053,1719983434072,-163.9357113,0.00021441,2]
[330983054,1719983434082,-5305.04568677,0.00021461,3]
[330983055,1719983434091,-15915.1370603,0.00021462,3]
[330983056,1719983434101,-154.27660404,0.00021463,2]
[330983057,1719983434110,-31830.2741206,0.00021471,3]
[330983058,1719983434120,-27206.61241725,0.00021481,2]
[330983059,1719983434135,-4943.83845254,0.00021481,2]
[330983060,1719983434146,-1316.85098677,0.00021481,2]
[330983086,1719983437700,-155.14571782,0.00014099,2]
[330983088,1719983437710,-3101.13706376,0.00017214,2]
[330983187,1719983439748,-2759.56778816,0.00017214,2]
[330983199,1719983442732,-453.0,0.00017214,2]
[330983200,1719983442747,-1903.54310028,0.00017214,2]
[330983201,1719983442758,-184.0220478,0.00017214,2]
[330983202,1719983442768,-140.1182402,0.00018835,2]
[330983203,1719983442779,-14.8817598,0.00018835,2]
[330983204,1719983442788,-155.0,0.00018919,2]
[330983205,1719983442797,-255.59801172,0.00019899,2]
[330983206,1719983442805,-3443.96190644,0.00021481,2]
[330983266,1719983615038,498.61815035,0.00013999,2]
[330983267,1719983615068,460.93954,0.00013999,2]
[330983268,1719983615097,541.52541692,0.00013999,2]
[330983270,1719983645068,154.75706649,0.000221,120]
[330983290,1719984632107,-5931.15007903,0.00013999,2]
[330983298,1719984632239,-800.31736771,0.00013999,2]
[330983299,1719984632250,-351.89855854,0.00013999,2]
[330983300,1719984632261,-2675.83458745,0.00013999,2]
[330983301,1719984632271,-4668.05514159,0.00015493,2]
[330983302,1719984632282,-2433.26495241,0.00015493,2]
[330983303,1719984632291,-261.77815807,0.00015571,2]
[330983304,1719984632372,-38.22184193,0.00015571,2]
[330983305,1719984632381,-416.3,0.0001565,2]
[330983306,1719984632391,-817.97945124,0.0001724,2]
[330983307,1719984632402,-371.48054876,0.0001724,2]
[330983308,1719984632411,-190.95489662,0.00017291,2]
[330983309,1719984632422,-59.04510338,0.00017291,2]
[330983310,1719984632432,-200.0,0.00017307,2]
[330983311,1719984632442,-835.84517171,0.00017408,2]
[330983312,1719984632464,-625.71482829,0.00017408,2]
[330983313,1719984632475,-250.0,0.00017496,2]
[330983314,1719984632486,-180.0,0.00017498,2]
[330983315,1719984632498,-1881.4001,0.00017499,2]
[330983316,1719984632507,-2661.53,0.00017533,2]
[330983317,1719984632516,-523.87,0.00017606,2]
[330983318,1719984632525,-7619.19,0.00017808,2]
[330983319,1719984632535,-4759.28664838,0.00017808,2]
[330983320,1719984632547,-847.54335162,0.00017808,2]
[330983321,1719984632556,-5000.0,0.00017889,2]
[330983322,1719984632565,-5000.0,0.00017889,2]
[330983323,1719984632575,-416.3,0.00017914,2]
[330983324,1719984632585,-400.0,0.00017977,2]
[330983325,1719984632595,-170.73,0.00018016,2]
[330983326,1719984632605,-1398.95077001,0.00018081,2]
[330983327,1719984632615,-511.02,0.00018152,2]
[330983328,1719984632628,-2500.0,0.00018156,2]
[330983329,1719984632639,-247.39,0.00018163,2]
[330983330,1719984632648,-2833.11012688,0.00018248,2]
[330983331,1719984632657,-1011.64476456,0.00018338,2]
[330983332,1719984632667,-1220.46352492,0.00018448,2]
[330983333,1719984632676,-154.4114992,0.00018549,2]
[330983334,1719984632685,-166.66666668,0.00018572,2]
[330983335,1719984632694,-168.87,0.00018589,2]
[330983336,1719984632704,-2833.11012688,0.00018665,2]
[330983337,1719984632715,-391.68505519,0.00018672,2]
[330983338,1719984632725,-155.02823972,0.00018673,2]
[330983339,1719984632734,-614.49,0.00018694,3]
[330983340,1719984632756,-3519.15219011,0.00018704,2]
[330983341,1719984632768,-183060.08672803,0.00018704,2]
[330983342,1719984632781,-24675.14347884,0.00018704,2]
[330983343,1719984632795,-367.76302935,0.00018704,2]
[330983344,1719984632807,-11454.38732188,0.00018704,2]
[330983345,1719984632820,-446.45853724,0.00018704,2]
[330983346,1719984632843,-5973.18862995,0.00018704,2]
[330983347,1719984632856,-1870.38996154,0.00018704,2]
[330983348,1719984632867,-628.42,0.00018704,2]
[330983349,1719984632879,-610.47,0.00018704,2]
[330983353,1719984638380,-166.284,0.00018248,2]
[330983354,1719984638389,-481.64961011,0.00018704,2]
[330983355,1719984638535,-612.18240239,0.00018704,2]
[330983356,1719984638546,-665.3051719,0.00018704,2]
[330983357,1719984638557,-1587.81759761,0.00018704,2]
[330983394,1719984640524,-16928.35635198,0.00018704,2]
[330983395,1719984640536,-530.85679741,0.00018704,2]
[330983396,1719984640549,-500.0,0.00018704,2]
[330983397,1719984640561,-681.43362743,0.00018704,2]
[330983398,1719984640573,-4371.83669694,0.00018704,2]
[330983399,1719984640585,-258.11,0.00018704,2]
[330983400,1719984640596,-500.0,0.00018704,2]
[330983401,1719984640608,-334.49259683,0.00018704,2]
[330983402,1719984640620,-14901.43966287,0.00018704,2]
[330983403,1719984640634,-3106.99666799,0.00018704,2]
[330983404,1719984640651,-6496.46948832,0.00018704,2]
[330983405,1719984640662,-511.70455756,0.00018704,2]
[330983406,1719984640674,-788.45903955,0.00018704,2]
[330983407,1719984640707,-402.89643277,0.00018704,2]
[330983408,1719984640720,-708.505,0.00018704,2]
[330983409,1719984640732,-771.144,0.00018704,2]
[330983410,1719984640748,-93207.48449334,0.00018704,2]
[330983411,1719984640804,-489.47653646,0.00018704,2]
[330983412,1719984640817,-927.22751103,0.00018704,2]
[330983413,1719984640828,-677.49,0.00018704,2]
[330983414,1719984640844,-321.5703708,0.00018704,2]
[330983415,1719984640856,-9171.306,0.00018704,2]
[330983416,1719984640868,-6786.9805142,0.00018704,2]
[330983417,1719984640881,-317.34899557,0.00018704,2]
[330983418,1719984640891,-391.68505519,0.00018755,2]
[330983419,1719984640901,-719.0662893,0.00018759,2]
[330983420,1719984640911,-151.44491087,0.00018763,2]
[330983421,1719984640921,-79.48730834,0.00018764,2]
[330983422,1719984640946,-75.51269166,0.00018764,2]
[330983423,1719984640956,-151.44491087,0.00018771,2]
[330983424,1719984640967,-156.74117336,0.00018789,2]
[330983425,1719984640977,-199.11,0.00018793,2]
[330983426,1719984640987,-391.68505519,0.00018793,2]
[330983427,1719984641000,-331.38882514,0.00018865,2]
[330983428,1719984641010,-331.38882514,0.00018881,2]
[330983429,1719984641020,-526.43862927,0.00018899,2]
[330983430,1719984641030,-155.0,0.00018899,2]
[330983431,1719984641040,-155.0,0.00018919,2]
[330983432,1719984641050,-461.65351825,0.00018919,2]
[330983433,1719984641060,-533.43075893,0.00018919,2]
[330983434,1719984641070,-155.0,0.00018919,2]
[330983435,1719984641080,-166.6666667,0.00018947,2]
[330983436,1719984641089,-1220.4635249,0.00018955,2]
[330983437,1719984641099,-151.44491087,0.00018985,2]
[330983438,1719984641108,-156.74117336,0.00018993,2]
[330983439,1719984641119,-265.91829802,0.00018999,2]
[330983440,1719984641128,-227.12084219,0.00018999,2]
[330983441,1719984641138,-391.68505519,0.00019004,2]
[330983442,1719984641147,-155.02823972,0.00019073,2]
[330983443,1719984641157,-2833.11012688,0.00019082,2]
[330983444,1719984641168,-391.68505519,0.00019142,2]
[330983445,1719984641177,-151.16697261,0.00019145,2]
[330983446,1719984641187,-155.02823972,0.00019171,2]
[330983447,1719984641198,-331.38882514,0.00019176,2]
[330983450,1719984641207,-292.27590029,0.00019177,2]
[330983452,1719984641218,-250.0,0.00019178,2]
[330983455,1719984641228,-391.68505519,0.00019198,2]
[330983457,1719984641241,-166.284,0.00019206,2]
[330983460,1719984641250,-154.18142166,0.00019245,2]
[330983463,1719984641260,-154.77233766,0.00019247,2]
[330983465,1719984641270,-155.02823972,0.0001925,2]
[330983467,1719984641281,-391.68505519,0.00019267,2]
[330983468,1719984641291,-152.40443534,0.00019282,2]
[330983469,1719984641302,-331.38882514,0.0001935,2]
[330983470,1719984641311,-391.68505519,0.00019397,2]
[330983471,1719984641321,-300.0,0.00019399,2]
[330983472,1719984641331,-391.68505519,0.00019403,2]
[330983473,1719984641341,-152.67357327,0.00019438,2]
[330983474,1719984641351,-153.10255957,0.00019457,2]
[330983475,1719984641361,-1220.4635249,0.00019463,2]
[330983476,1719984641371,-153.10255957,0.00019494,2]
[330983477,1719984641380,-2833.11012688,0.00019499,2]
[330983478,1719984641390,-154.18142166,0.00019499,2]
[330983479,1719984641400,-2500.0,0.000195,2]
[330983480,1719984641410,-151.44491087,0.00019511,2]
[330983481,1719984641420,-155.02823972,0.00019581,2]
[330983482,1719984641429,-152.67357327,0.00019625,2]
[330983483,1719984641439,-156.74117336,0.00019651,2]
[330983484,1719984641449,-391.68505519,0.00019685,2]
[330983485,1719984641458,-152.9902248,0.00019716,2]
[330983486,1719984641468,-166.50275553,0.00019792,2]
[330983487,1719984641478,-159.33865842,0.00019795,2]
[330983488,1719984641487,-821.0,0.000198,4]
[330983489,1719984641499,-3855.0,0.000198,4]
[330983490,1719984641509,-155.02823972,0.00019821,2]
[330983491,1719984641518,-151.0669482,0.00019861,2]
[330983492,1719984641528,-2833.11012688,0.00019916,2]
[330983493,1719984641538,-152.74725113,0.00019938,2]
[330983494,1719984641547,-151.44491087,0.00019945,2]
[330983495,1719984641556,-331.38882514,0.00019949,2]
[330983496,1719984641566,-1220.4635249,0.0001997,2]
[330983497,1719984641576,-391.68505519,0.00020021,2]
[330983498,1719984641586,-391.68505519,0.00020029,2]
[330983499,1719984641595,-151.0,0.00020037,2]
[330983500,1719984641605,-331.38882514,0.00020054,2]
[330983501,1719984641615,-600.0,0.00020071,2]
[330983502,1719984641626,-154.18142166,0.00020085,2]
[330983503,1719984641637,-166.66666666,0.0002015,2]
[330983504,1719984641646,-416.3,0.00020178,2]
[330983505,1719984641656,-154.18142166,0.00020192,2]
[330983506,1719984641665,-331.38882514,0.00020216,2]
[330983507,1719984641675,-1000.0,0.00020219,2]
[330983508,1719984641685,-160.13795506,0.00020221,2]
[330983509,1719984641694,-162.84672951,0.00020222,2]
[330983510,1719984641704,-400.0,0.00020225,2]
[330983511,1719984641714,-151.44491087,0.0002023,2]
[330983512,1719984641724,-152.40443534,0.00020233,2]
[330983513,1719984641734,-154.18142166,0.00020246,2]
[330983514,1719984641745,-166.284,0.00020265,2]
[330983515,1719984641757,-152.44476884,0.00020317,2]
[330983516,1719984641772,-218.7,0.00020322,2]
[330983517,1719984641782,-391.68505519,0.00020326,2]
[330983518,1719984641791,-2833.11012688,0.00020332,2]
[330983519,1719984641803,-155.51393716,0.00020346,2]
[330983520,1719984641813,-156.74117336,0.00020351,2]
[330983521,1719984641823,-152.40443534,0.00020354,2]
[330983522,1719984641832,-155.02823972,0.00020358,2]
[330983523,1719984641844,-151.69453535,0.00020365,2]
[330983524,1719984641854,-155.02823972,0.00020378,2]
[330983525,1719984641863,-154.18142166,0.00020393,2]
[330983526,1719984641872,-152.74725113,0.00020396,2]
[330983527,1719984641882,-331.38882514,0.00020403,2]
[330983528,1719984641892,-153.10255959,0.00020418,2]
[330983529,1719984641902,-152.40443534,0.00020461,2]
[330983530,1719984641914,-150.0,0.00020475,2]
[330983531,1719984641923,-1220.4635249,0.00020478,2]
[330983532,1719984641933,-152.74725113,0.00020483,2]
[330983533,1719984641943,-331.38882514,0.00020487,2]
[330983534,1719984641952,-161.69017429,0.00020559,2]
[330983535,1719984641962,-159.33865842,0.00020562,2]
[330983536,1719984641972,-159.33865842,0.00020594,2]
[330983537,1719984641982,-465.9367,0.00020614,2]
[330983538,1719984641992,-155.02823972,0.00020631,2]
[330983539,1719984642002,-151.44491087,0.00020631,2]
[330983540,1719984642012,-152.44476884,0.00020652,2]
[330983541,1719984642022,-6366.52890325,0.000207,2]
[330983542,1719984642032,-1007.0,0.000207,2]
[330983543,1719984642042,-218.7,0.00020704,2]
[330983544,1719984642052,-218.7,0.00020704,2]
[330983545,1719984642062,-144671.7374,0.00020714,2]
[330983546,1719984642072,-2125.18774011,0.00020714,2]
[330983547,1719984642085,-313.22225989,0.00020714,2]
[330983548,1719984642095,-152.67357327,0.00020736,2]
[330983549,1719984642105,-2833.11012688,0.00020749,2]
[330983550,1719984642114,-152.44476884,0.00020766,2]
[330983551,1719984642124,-200.0,0.000208,7]
[330983552,1719984642135,-1981.487159,0.000208,3]
[330983553,1719984642147,-825.14433453,0.000208,3]
[330983554,1719984642167,-33195.63406707,0.000208,3]
[330983555,1719984642176,-155.02823972,0.00020812,2]
[330983556,1719984642186,-155.33993037,0.00020817,2]
[330983557,1719984642195,-6366.52890317,0.00020818,2]
[330983558,1719984642205,-156.74117336,0.0002083,2]
[330983559,1719984642214,-151.44491087,0.00020834,2]
[330983560,1719984642224,-152.44476884,0.00020874,2]
[330983561,1719984642234,-218.7,0.0002089,2]
[330983562,1719984642244,-218.7,0.0002089,2]
[330983563,1719984642253,-218.7,0.0002089,2]
[330983564,1719984642262,-478.52645027,0.0002089,2]
[330983565,1719984642272,-500.0,0.000209,7]
[330983566,1719984642283,-210952.640452,0.000209,3]
[330983567,1719984642292,-391.68505519,0.00020924,2]
[330983568,1719984642302,-6366.52890317,0.00020936,2]
[330983569,1719984642311,-1220.4635249,0.00020985,2]
[330983570,1719984642321,-225.25950071,0.00021,2]
[330983571,1719984642332,-203.233329,0.00021,2]
[330983572,1719984642342,-170.97581571,0.00021007,2]
[330983573,1719984642351,-6366.52890317,0.00021055,2]
[330983574,1719984642361,-151.44491087,0.00021099,2]
[330983575,1719984642371,-151.44491087,0.00021106,2]
[330983576,1719984642380,-155.02823972,0.00021118,2]
[330983577,1719984642390,-2833.11012688,0.00021166,2]
[330983578,1719984642399,-6366.52890317,0.00021173,2]
[330983579,1719984642410,-155.02823972,0.00021195,2]
[330983580,1719984642420,-154.18142166,0.000212,2]
[330983581,1719984642430,-160.13795506,0.00021207,2]
[330983582,1719984642439,-166.66666667,0.00021216,2]
[330983583,1719984642448,-391.68505519,0.0002125,2]
[330983584,1719984642458,-151.0,0.00021265,2]
[330983585,1719984642467,-331.38882514,0.00021283,2]
[330983586,1719984642477,-6366.52890317,0.00021291,2]
[330983587,1719984642487,-700.0,0.000213,7]
[330983588,1719984642497,-151.69453535,0.00021302,2]
[330983589,1719984642507,-179.3043869,0.00021311,2]
[330983590,1719984642517,-151.0,0.00021354,2]
[330983591,1719984642527,-155.02823972,0.00021379,2]
[330983592,1719984642536,-500.0,0.00021381,2]
[330983593,1719984642546,-218.7,0.0002139,2]
[330983594,1719984642555,-1000.0,0.000214,7]
[330983595,1719984642565,-6366.52890317,0.00021409,2]
[330983596,1719984642575,-155.84223559,0.00021425,2]
[330983597,1719984642586,-166.284,0.00021438,2]
[330983598,1719984642595,-331.38882514,0.00021456,2]
[330983599,1719984642605,-152.44476884,0.00021464,2]
[330983600,1719984642615,-152.44476884,0.00021472,2]
[330983601,1719984642627,-1133.52090127,0.0002148,2]
[330983602,1719984642637,-720.753,0.00021481,2]
[330983603,1719984642647,-1220.4635249,0.00021493,2]
[330983604,1719984642656,-502.0,0.000215,2]
[330983605,1719984642666,-1200.0,0.000215,7]
[330983606,1719984642675,-6366.52890317,0.00021527,2]
[330983607,1719984642685,-2833.11012688,0.00021583,2]
[330983608,1719984642695,-200.0,0.000216,7]
[330983609,1719984642704,-151.0,0.0002161,2]
[330983610,1719984642713,-345.6,0.00021644,2]
[330983611,1719984642723,-150.04,0.00021644,2]
[330983612,1719984642733,-255.29,0.00021644,2]
[330983613,1719984642742,-6366.52890317,0.00021645,2]
[330983614,1719984642754,-226.4432324,0.00021656,2]
[330983615,1719984642766,-1095.56564095,0.00021658,2]
[330983616,1719984642775,-391.68505519,0.0002168,2]
[330983617,1719984642785,-391.68505519,0.0002169,2]
[330983618,1719984642795,-152.3729202,0.00021696,2]
[330983619,1719984642804,-200.0,0.000217,7]
[330983620,1719984642813,-154.18142166,0.00021742,2]
[330983621,1719984642822,-150.0,0.00021748,2]
[330983622,1719984642832,-391.68505519,0.00021754,2]
[330983623,1719984642841,-6366.52890317,0.00021764,2]
[330983624,1719984642851,-152.74725113,0.00021765,2]